{"text_format":"1","workbook":"xlsx","n_sheets":1,"sheets":["DATA"],"not_rendered":{"charts":0,"images":0,"macros":1,"external_links":1,"defined_names":11,"comments":0,"pivot_tables":0},"unopened":[],"bounds":{"document_bytes":16777216,"sheet_cells":100000,"rows_first":2000,"rows_last":500,"rows_between":2000,"halvings":0,"cell_chars":16384,"cell_head_chars":4096},"cells_cut":0,"cells_raw":0,"read":"whole","date_system":"1900"}

{"sheet":"DATA","index":0,"n_rows":110,"n_cols":10,"rows_kept":110,"cut":false,"hidden":false,"merged":[]}
["Date","Kilométrage véhicule","Plaque Véhicule","Litres enlevés","Dernier passage","Dernier plein réalisé","Dernier relevé kilométrique","Moyenne de consommation"]
["2021-05-29",97330,"3.SJC.633",54.2,{"$f":"passage(Tableau2[[#This Row],[Plaque Véhicule]])","v":""},{"$f":"litres(Tableau2[[#This Row],[Plaque Véhicule]])","v":""},{"$f":"kilom(Tableau2[[#This Row],[Plaque Véhicule]])","v":""},{"$f":"IFERROR(Tableau2[[#This Row],[Dernier plein réalisé]]/(Tableau2[[#This Row],[Kilométrage véhicule]]-Tableau2[[#This Row],[Dernier relevé kilométrique]])*100,\"\")","v":""}]
["2021-06-16",0,"3.RKC.457",0.2,{"$f":"passage(Tableau2[[#This Row],[Plaque Véhicule]])","v":""},{"$f":"litres(Tableau2[[#This Row],[Plaque Véhicule]])","v":""},{"$f":"kilom(Tableau2[[#This Row],[Plaque Véhicule]])","v":""},{"$f":"IFERROR(Tableau2[[#This Row],[Dernier plein réalisé]]/(Tableau2[[#This Row],[Kilométrage véhicule]]-Tableau2[[#This Row],[Dernier relevé kilométrique]])*100,\"\")","v":""},null,"Alt + F11  et aller dans Module1 pour voir les codes des 3 fonctions personnalisées"]
["2021-06-17",219339,"3.XKS.363",78.569999999999993,{"$f":"passage(Tableau2[[#This Row],[Plaque Véhicule]])","v":""},{"$f":"litres(Tableau2[[#This Row],[Plaque Véhicule]])","v":""},{"$f":"kilom(Tableau2[[#This Row],[Plaque Véhicule]])","v":""},{"$f":"IFERROR(Tableau2[[#This Row],[Dernier plein réalisé]]/(Tableau2[[#This Row],[Kilométrage véhicule]]-Tableau2[[#This Row],[Dernier relevé kilométrique]])*100,\"\")","v":""}]
["2021-06-18",147860,"3.LXX.700",38.81,{"$f":"passage(Tableau2[[#This Row],[Plaque Véhicule]])","v":""},{"$f":"litres(Tableau2[[#This Row],[Plaque Véhicule]])","v":""},{"$f":"kilom(Tableau2[[#This Row],[Plaque Véhicule]])","v":""},{"$f":"IFERROR(Tableau2[[#This Row],[Dernier plein réalisé]]/(Tableau2[[#This Row],[Kilométrage véhicule]]-Tableau2[[#This Row],[Dernier relevé kilométrique]])*100,\"\")","v":""}]
["2021-06-18",28700,"3.ACM.349",40.380000000000003,{"$f":"passage(Tableau2[[#This Row],[Plaque Véhicule]])","v":""},{"$f":"litres(Tableau2[[#This Row],[Plaque Véhicule]])","v":""},{"$f":"kilom(Tableau2[[#This Row],[Plaque Véhicule]])","v":""},{"$f":"IFERROR(Tableau2[[#This Row],[Dernier plein réalisé]]/(Tableau2[[#This Row],[Kilométrage véhicule]]-Tableau2[[#This Row],[Dernier relevé kilométrique]])*100,\"\")","v":""}]
["2021-06-18",1,"3.NCZ.884",66.099999999999994,{"$f":"passage(Tableau2[[#This Row],[Plaque Véhicule]])","v":""},{"$f":"litres(Tableau2[[#This Row],[Plaque Véhicule]])","v":""},{"$f":"kilom(Tableau2[[#This Row],[Plaque Véhicule]])","v":""},{"$f":"IFERROR(Tableau2[[#This Row],[Dernier plein réalisé]]/(Tableau2[[#This Row],[Kilométrage véhicule]]-Tableau2[[#This Row],[Dernier relevé kilométrique]])*100,\"\")","v":""},null,"Attention beaucoup de kilométrages erronés d'où une moyenne négative !!!"]
["2021-06-18",60000,"3.QXC.357",55.74,{"$f":"passage(Tableau2[[#This Row],[Plaque Véhicule]])","v":""},{"$f":"litres(Tableau2[[#This Row],[Plaque Véhicule]])","v":""},{"$f":"kilom(Tableau2[[#This Row],[Plaque Véhicule]])","v":""},{"$f":"IFERROR(Tableau2[[#This Row],[Dernier plein réalisé]]/(Tableau2[[#This Row],[Kilométrage véhicule]]-Tableau2[[#This Row],[Dernier relevé kilométrique]])*100,\"\")","v":""},null,"ces lignes ave cproblème  sont mises en rouge par MFC"]
["2021-06-18",116177,"3.UNX.398",36.82,{"$f":"passage(Tableau2[[#This Row],[Plaque Véhicule]])","v":""},{"$f":"litres(Tableau2[[#This Row],[Plaque Véhicule]])","v":""},{"$f":"kilom(Tableau2[[#This Row],[Plaque Véhicule]])","v":""},{"$f":"IFERROR(Tableau2[[#This Row],[Dernier plein réalisé]]/(Tableau2[[#This Row],[Kilométrage véhicule]]-Tableau2[[#This Row],[Dernier relevé kilométrique]])*100,\"\")","v":""}]
["2021-06-18",98280,"3.SJC.633",61.6,{"$f":"passage(Tableau2[[#This Row],[Plaque Véhicule]])","v":"2021-05-29"},{"$f":"litres(Tableau2[[#This Row],[Plaque Véhicule]])","v":54.2},{"$f":"kilom(Tableau2[[#This Row],[Plaque Véhicule]])","v":97330},{"$f":"IFERROR(Tableau2[[#This Row],[Dernier plein réalisé]]/(Tableau2[[#This Row],[Kilométrage véhicule]]-Tableau2[[#This Row],[Dernier relevé kilométrique]])*100,\"\")","v":5.7052631578947368}]
["2021-06-19",48210,"3.QRM.682",46.24,{"$f":"passage(Tableau2[[#This Row],[Plaque Véhicule]])","v":""},{"$f":"litres(Tableau2[[#This Row],[Plaque Véhicule]])","v":""},{"$f":"kilom(Tableau2[[#This Row],[Plaque Véhicule]])","v":""},{"$f":"IFERROR(Tableau2[[#This Row],[Dernier plein réalisé]]/(Tableau2[[#This Row],[Kilométrage véhicule]]-Tableau2[[#This Row],[Dernier relevé kilométrique]])*100,\"\")","v":""}]
["2021-06-21",1,"1.TAX.095",69.739999999999995,{"$f":"passage(Tableau2[[#This Row],[Plaque Véhicule]])","v":""},{"$f":"litres(Tableau2[[#This Row],[Plaque Véhicule]])","v":""},{"$f":"kilom(Tableau2[[#This Row],[Plaque Véhicule]])","v":""},{"$f":"IFERROR(Tableau2[[#This Row],[Dernier plein réalisé]]/(Tableau2[[#This Row],[Kilométrage véhicule]]-Tableau2[[#This Row],[Dernier relevé kilométrique]])*100,\"\")","v":""}]
["2021-06-22",160347,"3.XAL.248",57.2,{"$f":"passage(Tableau2[[#This Row],[Plaque Véhicule]])","v":""},{"$f":"litres(Tableau2[[#This Row],[Plaque Véhicule]])","v":""},{"$f":"kilom(Tableau2[[#This Row],[Plaque Véhicule]])","v":""},{"$f":"IFERROR(Tableau2[[#This Row],[Dernier plein réalisé]]/(Tableau2[[#This Row],[Kilométrage véhicule]]-Tableau2[[#This Row],[Dernier relevé kilométrique]])*100,\"\")","v":""}]
["2021-06-23",132572,"3.SPH.860",52,{"$f":"passage(Tableau2[[#This Row],[Plaque Véhicule]])","v":""},{"$f":"litres(Tableau2[[#This Row],[Plaque Véhicule]])","v":""},{"$f":"kilom(Tableau2[[#This Row],[Plaque Véhicule]])","v":""},{"$f":"IFERROR(Tableau2[[#This Row],[Dernier plein réalisé]]/(Tableau2[[#This Row],[Kilométrage véhicule]]-Tableau2[[#This Row],[Dernier relevé kilométrique]])*100,\"\")","v":""}]
["2021-06-23",21397,"3.XAA.223",75.319999999999993,{"$f":"passage(Tableau2[[#This Row],[Plaque Véhicule]])","v":""},{"$f":"litres(Tableau2[[#This Row],[Plaque Véhicule]])","v":""},{"$f":"kilom(Tableau2[[#This Row],[Plaque Véhicule]])","v":""},{"$f":"IFERROR(Tableau2[[#This Row],[Dernier plein réalisé]]/(Tableau2[[#This Row],[Kilométrage véhicule]]-Tableau2[[#This Row],[Dernier relevé kilométrique]])*100,\"\")","v":""}]
["2021-06-23",32243,"3.QAP.233",64.680000000000007,{"$f":"passage(Tableau2[[#This Row],[Plaque Véhicule]])","v":""},{"$f":"litres(Tableau2[[#This Row],[Plaque Véhicule]])","v":""},{"$f":"kilom(Tableau2[[#This Row],[Plaque Véhicule]])","v":""},{"$f":"IFERROR(Tableau2[[#This Row],[Dernier plein réalisé]]/(Tableau2[[#This Row],[Kilométrage véhicule]]-Tableau2[[#This Row],[Dernier relevé kilométrique]])*100,\"\")","v":""}]
["2021-06-23",69312,"3.JXX.096",71.73,{"$f":"passage(Tableau2[[#This Row],[Plaque Véhicule]])","v":""},{"$f":"litres(Tableau2[[#This Row],[Plaque Véhicule]])","v":""},{"$f":"kilom(Tableau2[[#This Row],[Plaque Véhicule]])","v":""},{"$f":"IFERROR(Tableau2[[#This Row],[Dernier plein réalisé]]/(Tableau2[[#This Row],[Kilométrage véhicule]]-Tableau2[[#This Row],[Dernier relevé kilométrique]])*100,\"\")","v":""}]
["2021-06-23",98901,"3.SJC.633",57.87,{"$f":"passage(Tableau2[[#This Row],[Plaque Véhicule]])","v":"2021-06-18"},{"$f":"litres(Tableau2[[#This Row],[Plaque Véhicule]])","v":61.6},{"$f":"kilom(Tableau2[[#This Row],[Plaque Véhicule]])","v":98280},{"$f":"IFERROR(Tableau2[[#This Row],[Dernier plein réalisé]]/(Tableau2[[#This Row],[Kilométrage véhicule]]-Tableau2[[#This Row],[Dernier relevé kilométrique]])*100,\"\")","v":9.9194847020933974}]
["2021-06-24",86580,"3.NZS.350",36.01,{"$f":"passage(Tableau2[[#This Row],[Plaque Véhicule]])","v":""},{"$f":"litres(Tableau2[[#This Row],[Plaque Véhicule]])","v":""},{"$f":"kilom(Tableau2[[#This Row],[Plaque Véhicule]])","v":""},{"$f":"IFERROR(Tableau2[[#This Row],[Dernier plein réalisé]]/(Tableau2[[#This Row],[Kilométrage véhicule]]-Tableau2[[#This Row],[Dernier relevé kilométrique]])*100,\"\")","v":""}]
["2021-06-24",73680,"3.RKC.457",71.78,{"$f":"passage(Tableau2[[#This Row],[Plaque Véhicule]])","v":"2021-06-16"},{"$f":"litres(Tableau2[[#This Row],[Plaque Véhicule]])","v":0.2},{"$f":"kilom(Tableau2[[#This Row],[Plaque Véhicule]])","v":""},{"$f":"IFERROR(Tableau2[[#This Row],[Dernier plein réalisé]]/(Tableau2[[#This Row],[Kilométrage véhicule]]-Tableau2[[#This Row],[Dernier relevé kilométrique]])*100,\"\")","v":""}]
["2021-06-25",148591,"3.LXX.700",44.22,{"$f":"passage(Tableau2[[#This Row],[Plaque Véhicule]])","v":"2021-06-18"},{"$f":"litres(Tableau2[[#This Row],[Plaque Véhicule]])","v":38.81},{"$f":"kilom(Tableau2[[#This Row],[Plaque Véhicule]])","v":147860},{"$f":"IFERROR(Tableau2[[#This Row],[Dernier plein réalisé]]/(Tableau2[[#This Row],[Kilométrage véhicule]]-Tableau2[[#This Row],[Dernier relevé kilométrique]])*100,\"\")","v":5.3091655266757867}]
["2021-06-25",29470,"3.ACM.349",45.16,{"$f":"passage(Tableau2[[#This Row],[Plaque Véhicule]])","v":"2021-06-18"},{"$f":"litres(Tableau2[[#This Row],[Plaque Véhicule]])","v":40.380000000000003},{"$f":"kilom(Tableau2[[#This Row],[Plaque Véhicule]])","v":28700},{"$f":"IFERROR(Tableau2[[#This Row],[Dernier plein réalisé]]/(Tableau2[[#This Row],[Kilométrage véhicule]]-Tableau2[[#This Row],[Dernier relevé kilométrique]])*100,\"\")","v":5.244155844155844}]
["2021-06-25",285221,"3.CVC.067",58.97,{"$f":"passage(Tableau2[[#This Row],[Plaque Véhicule]])","v":""},{"$f":"litres(Tableau2[[#This Row],[Plaque Véhicule]])","v":""},{"$f":"kilom(Tableau2[[#This Row],[Plaque Véhicule]])","v":""},{"$f":"IFERROR(Tableau2[[#This Row],[Dernier plein réalisé]]/(Tableau2[[#This Row],[Kilométrage véhicule]]-Tableau2[[#This Row],[Dernier relevé kilométrique]])*100,\"\")","v":""}]
["2021-06-25",61000,"3.QXC.357",54.2,{"$f":"passage(Tableau2[[#This Row],[Plaque Véhicule]])","v":"2021-06-18"},{"$f":"litres(Tableau2[[#This Row],[Plaque Véhicule]])","v":55.74},{"$f":"kilom(Tableau2[[#This Row],[Plaque Véhicule]])","v":60000},{"$f":"IFERROR(Tableau2[[#This Row],[Dernier plein réalisé]]/(Tableau2[[#This Row],[Kilométrage véhicule]]-Tableau2[[#This Row],[Dernier relevé kilométrique]])*100,\"\")","v":5.5740000000000007}]
["2021-06-25",61000,"3.QXC.357",0.2,{"$f":"passage(Tableau2[[#This Row],[Plaque Véhicule]])","v":"2021-06-25"},{"$f":"litres(Tableau2[[#This Row],[Plaque Véhicule]])","v":54.2},{"$f":"kilom(Tableau2[[#This Row],[Plaque Véhicule]])","v":61000},{"$f":"IFERROR(Tableau2[[#This Row],[Dernier plein réalisé]]/(Tableau2[[#This Row],[Kilométrage véhicule]]-Tableau2[[#This Row],[Dernier relevé kilométrique]])*100,\"\")","v":""}]
["2021-06-25",116440,"3.LCS.384",58.92,{"$f":"passage(Tableau2[[#This Row],[Plaque Véhicule]])","v":""},{"$f":"litres(Tableau2[[#This Row],[Plaque Véhicule]])","v":""},{"$f":"kilom(Tableau2[[#This Row],[Plaque Véhicule]])","v":""},{"$f":"IFERROR(Tableau2[[#This Row],[Dernier plein réalisé]]/(Tableau2[[#This Row],[Kilométrage véhicule]]-Tableau2[[#This Row],[Dernier relevé kilométrique]])*100,\"\")","v":""}]
["2021-06-26",247224,"2.TAX.033",69.62,{"$f":"passage(Tableau2[[#This Row],[Plaque Véhicule]])","v":""},{"$f":"litres(Tableau2[[#This Row],[Plaque Véhicule]])","v":""},{"$f":"kilom(Tableau2[[#This Row],[Plaque Véhicule]])","v":""},{"$f":"IFERROR(Tableau2[[#This Row],[Dernier plein réalisé]]/(Tableau2[[#This Row],[Kilométrage véhicule]]-Tableau2[[#This Row],[Dernier relevé kilométrique]])*100,\"\")","v":""}]
["2021-06-27",48889,"3.QRM.682",45.05,{"$f":"passage(Tableau2[[#This Row],[Plaque Véhicule]])","v":"2021-06-19"},{"$f":"litres(Tableau2[[#This Row],[Plaque Véhicule]])","v":46.24},{"$f":"kilom(Tableau2[[#This Row],[Plaque Véhicule]])","v":48210},{"$f":"IFERROR(Tableau2[[#This Row],[Dernier plein réalisé]]/(Tableau2[[#This Row],[Kilométrage véhicule]]-Tableau2[[#This Row],[Dernier relevé kilométrique]])*100,\"\")","v":6.8100147275405005}]
["2021-06-28",21752,"3.XAA.223",64.02,{"$f":"passage(Tableau2[[#This Row],[Plaque Véhicule]])","v":"2021-06-23"},{"$f":"litres(Tableau2[[#This Row],[Plaque Véhicule]])","v":75.319999999999993},{"$f":"kilom(Tableau2[[#This Row],[Plaque Véhicule]])","v":21397},{"$f":"IFERROR(Tableau2[[#This Row],[Dernier plein réalisé]]/(Tableau2[[#This Row],[Kilométrage véhicule]]-Tableau2[[#This Row],[Dernier relevé kilométrique]])*100,\"\")","v":21.216901408450703}]
["2021-06-28",44514,"3.QNU.352",89.56,{"$f":"passage(Tableau2[[#This Row],[Plaque Véhicule]])","v":""},{"$f":"litres(Tableau2[[#This Row],[Plaque Véhicule]])","v":""},{"$f":"kilom(Tableau2[[#This Row],[Plaque Véhicule]])","v":""},{"$f":"IFERROR(Tableau2[[#This Row],[Dernier plein réalisé]]/(Tableau2[[#This Row],[Kilométrage véhicule]]-Tableau2[[#This Row],[Dernier relevé kilométrique]])*100,\"\")","v":""}]
["2021-06-28",21752,"3.SJC.632",64.02,{"$f":"passage(Tableau2[[#This Row],[Plaque Véhicule]])","v":""},{"$f":"litres(Tableau2[[#This Row],[Plaque Véhicule]])","v":""},{"$f":"kilom(Tableau2[[#This Row],[Plaque Véhicule]])","v":""},{"$f":"IFERROR(Tableau2[[#This Row],[Dernier plein réalisé]]/(Tableau2[[#This Row],[Kilométrage véhicule]]-Tableau2[[#This Row],[Dernier relevé kilométrique]])*100,\"\")","v":""}]
["2021-06-29",144638,"3.RKC.457",72.16,{"$f":"passage(Tableau2[[#This Row],[Plaque Véhicule]])","v":"2021-06-24"},{"$f":"litres(Tableau2[[#This Row],[Plaque Véhicule]])","v":71.78},{"$f":"kilom(Tableau2[[#This Row],[Plaque Véhicule]])","v":73680},{"$f":"IFERROR(Tableau2[[#This Row],[Dernier plein réalisé]]/(Tableau2[[#This Row],[Kilométrage véhicule]]-Tableau2[[#This Row],[Dernier relevé kilométrique]])*100,\"\")","v":0.10115843174835817}]
["2021-06-29",99518,"3.XKS.363",54.66,{"$f":"passage(Tableau2[[#This Row],[Plaque Véhicule]])","v":"2021-06-17"},{"$f":"litres(Tableau2[[#This Row],[Plaque Véhicule]])","v":78.569999999999993},{"$f":"kilom(Tableau2[[#This Row],[Plaque Véhicule]])","v":219339},{"$f":"IFERROR(Tableau2[[#This Row],[Dernier plein réalisé]]/(Tableau2[[#This Row],[Kilométrage véhicule]]-Tableau2[[#This Row],[Dernier relevé kilométrique]])*100,\"\")","v":-6.5572812779062087E-2}]
["2021-06-29",59560,"3.LXX.700",72.72,{"$f":"passage(Tableau2[[#This Row],[Plaque Véhicule]])","v":"2021-06-25"},{"$f":"litres(Tableau2[[#This Row],[Plaque Véhicule]])","v":44.22},{"$f":"kilom(Tableau2[[#This Row],[Plaque Véhicule]])","v":148591},{"$f":"IFERROR(Tableau2[[#This Row],[Dernier plein réalisé]]/(Tableau2[[#This Row],[Kilométrage véhicule]]-Tableau2[[#This Row],[Dernier relevé kilométrique]])*100,\"\")","v":-4.9668093136098657E-2}]
["2021-06-30",116771,"3.ACM.349",37.880000000000003,{"$f":"passage(Tableau2[[#This Row],[Plaque Véhicule]])","v":"2021-06-25"},{"$f":"litres(Tableau2[[#This Row],[Plaque Véhicule]])","v":45.16},{"$f":"kilom(Tableau2[[#This Row],[Plaque Véhicule]])","v":29470},{"$f":"IFERROR(Tableau2[[#This Row],[Dernier plein réalisé]]/(Tableau2[[#This Row],[Kilométrage véhicule]]-Tableau2[[#This Row],[Dernier relevé kilométrique]])*100,\"\")","v":5.1729075268324529E-2}]
["2021-07-01",149420,"3.NCZ.884",57.97,{"$f":"passage(Tableau2[[#This Row],[Plaque Véhicule]])","v":"2021-06-18"},{"$f":"litres(Tableau2[[#This Row],[Plaque Véhicule]])","v":66.099999999999994},{"$f":"kilom(Tableau2[[#This Row],[Plaque Véhicule]])","v":1},{"$f":"IFERROR(Tableau2[[#This Row],[Dernier plein réalisé]]/(Tableau2[[#This Row],[Kilométrage véhicule]]-Tableau2[[#This Row],[Dernier relevé kilométrique]])*100,\"\")","v":4.4238015245718409E-2}]
["2021-07-02",74349,"3.QXC.357",76.86,{"$f":"passage(Tableau2[[#This Row],[Plaque Véhicule]])","v":"2021-06-25"},{"$f":"litres(Tableau2[[#This Row],[Plaque Véhicule]])","v":0.2},{"$f":"kilom(Tableau2[[#This Row],[Plaque Véhicule]])","v":61000},{"$f":"IFERROR(Tableau2[[#This Row],[Dernier plein réalisé]]/(Tableau2[[#This Row],[Kilométrage véhicule]]-Tableau2[[#This Row],[Dernier relevé kilométrique]])*100,\"\")","v":1.4982395685070042E-3}]
["2021-07-02",149780,"3.UNX.398",24.83,{"$f":"passage(Tableau2[[#This Row],[Plaque Véhicule]])","v":"2021-06-18"},{"$f":"litres(Tableau2[[#This Row],[Plaque Véhicule]])","v":36.82},{"$f":"kilom(Tableau2[[#This Row],[Plaque Véhicule]])","v":116177},{"$f":"IFERROR(Tableau2[[#This Row],[Dernier plein réalisé]]/(Tableau2[[#This Row],[Kilométrage véhicule]]-Tableau2[[#This Row],[Dernier relevé kilométrique]])*100,\"\")","v":0.10957354998065649}]
["2021-07-02",32794,"3.SJC.633",72.66,{"$f":"passage(Tableau2[[#This Row],[Plaque Véhicule]])","v":"2021-06-23"},{"$f":"litres(Tableau2[[#This Row],[Plaque Véhicule]])","v":57.87},{"$f":"kilom(Tableau2[[#This Row],[Plaque Véhicule]])","v":98901},{"$f":"IFERROR(Tableau2[[#This Row],[Dernier plein réalisé]]/(Tableau2[[#This Row],[Kilométrage véhicule]]-Tableau2[[#This Row],[Dernier relevé kilométrique]])*100,\"\")","v":-8.7539897439000397E-2}]
["2021-07-02",133390,"3.QRM.682",59.1,{"$f":"passage(Tableau2[[#This Row],[Plaque Véhicule]])","v":"2021-06-27"},{"$f":"litres(Tableau2[[#This Row],[Plaque Véhicule]])","v":45.05},{"$f":"kilom(Tableau2[[#This Row],[Plaque Véhicule]])","v":48889},{"$f":"IFERROR(Tableau2[[#This Row],[Dernier plein réalisé]]/(Tableau2[[#This Row],[Kilométrage véhicule]]-Tableau2[[#This Row],[Dernier relevé kilométrique]])*100,\"\")","v":5.3312978544632607E-2}]
["2021-07-02",133390,"1.TAX.095",0.02,{"$f":"passage(Tableau2[[#This Row],[Plaque Véhicule]])","v":"2021-06-21"},{"$f":"litres(Tableau2[[#This Row],[Plaque Véhicule]])","v":69.739999999999995},{"$f":"kilom(Tableau2[[#This Row],[Plaque Véhicule]])","v":1},{"$f":"IFERROR(Tableau2[[#This Row],[Dernier plein réalisé]]/(Tableau2[[#This Row],[Kilométrage véhicule]]-Tableau2[[#This Row],[Dernier relevé kilométrique]])*100,\"\")","v":5.2283171775783607E-2}]
["2021-07-05",100218,"3.XAL.248",61.14,{"$f":"passage(Tableau2[[#This Row],[Plaque Véhicule]])","v":"2021-06-22"},{"$f":"litres(Tableau2[[#This Row],[Plaque Véhicule]])","v":57.2},{"$f":"kilom(Tableau2[[#This Row],[Plaque Véhicule]])","v":160347},{"$f":"IFERROR(Tableau2[[#This Row],[Dernier plein réalisé]]/(Tableau2[[#This Row],[Kilométrage véhicule]]-Tableau2[[#This Row],[Dernier relevé kilométrique]])*100,\"\")","v":-9.5128806399574245E-2}]
["2021-07-05",249883,"3.SPH.860",70.97,{"$f":"passage(Tableau2[[#This Row],[Plaque Véhicule]])","v":"2021-06-23"},{"$f":"litres(Tableau2[[#This Row],[Plaque Véhicule]])","v":52},{"$f":"kilom(Tableau2[[#This Row],[Plaque Véhicule]])","v":132572},{"$f":"IFERROR(Tableau2[[#This Row],[Dernier plein réalisé]]/(Tableau2[[#This Row],[Kilométrage véhicule]]-Tableau2[[#This Row],[Dernier relevé kilométrique]])*100,\"\")","v":4.4326618987136752E-2}]
["2021-07-06",49531,"3.XAA.223",43.27,{"$f":"passage(Tableau2[[#This Row],[Plaque Véhicule]])","v":"2021-06-28"},{"$f":"litres(Tableau2[[#This Row],[Plaque Véhicule]])","v":64.02},{"$f":"kilom(Tableau2[[#This Row],[Plaque Véhicule]])","v":21752},{"$f":"IFERROR(Tableau2[[#This Row],[Dernier plein réalisé]]/(Tableau2[[#This Row],[Kilométrage véhicule]]-Tableau2[[#This Row],[Dernier relevé kilométrique]])*100,\"\")","v":0.23046185967817417}]
["2021-07-06",22150,"3.QAP.233",72.78,{"$f":"passage(Tableau2[[#This Row],[Plaque Véhicule]])","v":"2021-06-23"},{"$f":"litres(Tableau2[[#This Row],[Plaque Véhicule]])","v":64.680000000000007},{"$f":"kilom(Tableau2[[#This Row],[Plaque Véhicule]])","v":32243},{"$f":"IFERROR(Tableau2[[#This Row],[Dernier plein réalisé]]/(Tableau2[[#This Row],[Kilométrage véhicule]]-Tableau2[[#This Row],[Dernier relevé kilométrique]])*100,\"\")","v":-0.64084018626771033}]
["2021-07-07",69810,"3.JXX.096",66.23,{"$f":"passage(Tableau2[[#This Row],[Plaque Véhicule]])","v":"2021-06-23"},{"$f":"litres(Tableau2[[#This Row],[Plaque Véhicule]])","v":71.73},{"$f":"kilom(Tableau2[[#This Row],[Plaque Véhicule]])","v":69312},{"$f":"IFERROR(Tableau2[[#This Row],[Dernier plein réalisé]]/(Tableau2[[#This Row],[Kilométrage véhicule]]-Tableau2[[#This Row],[Dernier relevé kilométrique]])*100,\"\")","v":14.403614457831326}]
["2021-07-07",150551,"3.SJC.633",45.11,{"$f":"passage(Tableau2[[#This Row],[Plaque Véhicule]])","v":"2021-07-02"},{"$f":"litres(Tableau2[[#This Row],[Plaque Véhicule]])","v":72.66},{"$f":"kilom(Tableau2[[#This Row],[Plaque Véhicule]])","v":32794},{"$f":"IFERROR(Tableau2[[#This Row],[Dernier plein réalisé]]/(Tableau2[[#This Row],[Kilométrage véhicule]]-Tableau2[[#This Row],[Dernier relevé kilométrique]])*100,\"\")","v":6.170333823042367E-2}]
["2021-07-07",45110,"3.NZS.350",64.02,{"$f":"passage(Tableau2[[#This Row],[Plaque Véhicule]])","v":"2021-06-24"},{"$f":"litres(Tableau2[[#This Row],[Plaque Véhicule]])","v":36.01},{"$f":"kilom(Tableau2[[#This Row],[Plaque Véhicule]])","v":86580},{"$f":"IFERROR(Tableau2[[#This Row],[Dernier plein réalisé]]/(Tableau2[[#This Row],[Kilométrage véhicule]]-Tableau2[[#This Row],[Dernier relevé kilométrique]])*100,\"\")","v":-8.6833855799373041E-2}]
["2021-07-07",116842,"3.RKC.457",64.83,{"$f":"passage(Tableau2[[#This Row],[Plaque Véhicule]])","v":"2021-06-29"},{"$f":"litres(Tableau2[[#This Row],[Plaque Véhicule]])","v":72.16},{"$f":"kilom(Tableau2[[#This Row],[Plaque Véhicule]])","v":144638},{"$f":"IFERROR(Tableau2[[#This Row],[Dernier plein réalisé]]/(Tableau2[[#This Row],[Kilométrage véhicule]]-Tableau2[[#This Row],[Dernier relevé kilométrique]])*100,\"\")","v":-0.25960569866167793}]
["2021-07-08",286547,"3.LXX.700",46.38,{"$f":"passage(Tableau2[[#This Row],[Plaque Véhicule]])","v":"2021-06-29"},{"$f":"litres(Tableau2[[#This Row],[Plaque Véhicule]])","v":72.72},{"$f":"kilom(Tableau2[[#This Row],[Plaque Véhicule]])","v":59560},{"$f":"IFERROR(Tableau2[[#This Row],[Dernier plein réalisé]]/(Tableau2[[#This Row],[Kilométrage véhicule]]-Tableau2[[#This Row],[Dernier relevé kilométrique]])*100,\"\")","v":3.2037077013221026E-2}]
["2021-07-08",87289,"3.ACM.349",36.94,{"$f":"passage(Tableau2[[#This Row],[Plaque Véhicule]])","v":"2021-06-30"},{"$f":"litres(Tableau2[[#This Row],[Plaque Véhicule]])","v":37.880000000000003},{"$f":"kilom(Tableau2[[#This Row],[Plaque Véhicule]])","v":116771},{"$f":"IFERROR(Tableau2[[#This Row],[Dernier plein réalisé]]/(Tableau2[[#This Row],[Kilométrage véhicule]]-Tableau2[[#This Row],[Dernier relevé kilométrique]])*100,\"\")","v":-0.12848517739637746}]
["2021-07-09",151029,"3.CVC.067",25.21,{"$f":"passage(Tableau2[[#This Row],[Plaque Véhicule]])","v":"2021-06-25"},{"$f":"litres(Tableau2[[#This Row],[Plaque Véhicule]])","v":58.97},{"$f":"kilom(Tableau2[[#This Row],[Plaque Véhicule]])","v":285221},{"$f":"IFERROR(Tableau2[[#This Row],[Dernier plein réalisé]]/(Tableau2[[#This Row],[Kilométrage véhicule]]-Tableau2[[#This Row],[Dernier relevé kilométrique]])*100,\"\")","v":-4.3944497436508884E-2}]
["2021-07-09",134224,"3.QXC.357",53.44,{"$f":"passage(Tableau2[[#This Row],[Plaque Véhicule]])","v":"2021-07-02"},{"$f":"litres(Tableau2[[#This Row],[Plaque Véhicule]])","v":76.86},{"$f":"kilom(Tableau2[[#This Row],[Plaque Véhicule]])","v":74349},{"$f":"IFERROR(Tableau2[[#This Row],[Dernier plein réalisé]]/(Tableau2[[#This Row],[Kilométrage véhicule]]-Tableau2[[#This Row],[Dernier relevé kilométrique]])*100,\"\")","v":0.12836743215031315}]
["2021-07-09",1,"3.QXC.357",62.25,{"$f":"passage(Tableau2[[#This Row],[Plaque Véhicule]])","v":"2021-07-09"},{"$f":"litres(Tableau2[[#This Row],[Plaque Véhicule]])","v":53.44},{"$f":"kilom(Tableau2[[#This Row],[Plaque Véhicule]])","v":134224},{"$f":"IFERROR(Tableau2[[#This Row],[Dernier plein réalisé]]/(Tableau2[[#This Row],[Kilométrage véhicule]]-Tableau2[[#This Row],[Dernier relevé kilométrique]])*100,\"\")","v":-3.981433882419555E-2}]
["2021-07-09",63350,"3.LCS.384",54.42,{"$f":"passage(Tableau2[[#This Row],[Plaque Véhicule]])","v":"2021-06-25"},{"$f":"litres(Tableau2[[#This Row],[Plaque Véhicule]])","v":58.92},{"$f":"kilom(Tableau2[[#This Row],[Plaque Véhicule]])","v":116440},{"$f":"IFERROR(Tableau2[[#This Row],[Dernier plein réalisé]]/(Tableau2[[#This Row],[Kilométrage véhicule]]-Tableau2[[#This Row],[Dernier relevé kilométrique]])*100,\"\")","v":-0.11098135242041816}]
["2021-07-09",145226,"2.TAX.033",55.06,{"$f":"passage(Tableau2[[#This Row],[Plaque Véhicule]])","v":"2021-06-26"},{"$f":"litres(Tableau2[[#This Row],[Plaque Véhicule]])","v":69.62},{"$f":"kilom(Tableau2[[#This Row],[Plaque Véhicule]])","v":247224},{"$f":"IFERROR(Tableau2[[#This Row],[Dernier plein réalisé]]/(Tableau2[[#This Row],[Kilométrage véhicule]]-Tableau2[[#This Row],[Dernier relevé kilométrique]])*100,\"\")","v":-6.8256240318437619E-2}]
["2021-07-09",60112,"3.QRM.682",63.88,{"$f":"passage(Tableau2[[#This Row],[Plaque Véhicule]])","v":"2021-07-02"},{"$f":"litres(Tableau2[[#This Row],[Plaque Véhicule]])","v":59.1},{"$f":"kilom(Tableau2[[#This Row],[Plaque Véhicule]])","v":133390},{"$f":"IFERROR(Tableau2[[#This Row],[Dernier plein réalisé]]/(Tableau2[[#This Row],[Kilométrage véhicule]]-Tableau2[[#This Row],[Dernier relevé kilométrique]])*100,\"\")","v":-8.0651764513223617E-2}]
["2021-07-10",1,"3.XAA.223",68.010000000000005,{"$f":"passage(Tableau2[[#This Row],[Plaque Véhicule]])","v":"2021-07-06"},{"$f":"litres(Tableau2[[#This Row],[Plaque Véhicule]])","v":43.27},{"$f":"kilom(Tableau2[[#This Row],[Plaque Véhicule]])","v":49531},{"$f":"IFERROR(Tableau2[[#This Row],[Dernier plein réalisé]]/(Tableau2[[#This Row],[Kilométrage véhicule]]-Tableau2[[#This Row],[Dernier relevé kilométrique]])*100,\"\")","v":-8.7361195235210992E-2}]
["2021-07-12",61710,"3.QNU.352",69.650000000000006,{"$f":"passage(Tableau2[[#This Row],[Plaque Véhicule]])","v":"2021-06-28"},{"$f":"litres(Tableau2[[#This Row],[Plaque Véhicule]])","v":89.56},{"$f":"kilom(Tableau2[[#This Row],[Plaque Véhicule]])","v":44514},{"$f":"IFERROR(Tableau2[[#This Row],[Dernier plein réalisé]]/(Tableau2[[#This Row],[Kilométrage véhicule]]-Tableau2[[#This Row],[Dernier relevé kilométrique]])*100,\"\")","v":0.52081879506862061}]
["2021-07-12",101012,"3.SJC.632",62.87,{"$f":"passage(Tableau2[[#This Row],[Plaque Véhicule]])","v":"2021-06-28"},{"$f":"litres(Tableau2[[#This Row],[Plaque Véhicule]])","v":64.02},{"$f":"kilom(Tableau2[[#This Row],[Plaque Véhicule]])","v":21752},{"$f":"IFERROR(Tableau2[[#This Row],[Dernier plein réalisé]]/(Tableau2[[#This Row],[Kilométrage véhicule]]-Tableau2[[#This Row],[Dernier relevé kilométrique]])*100,\"\")","v":8.0772142316426945E-2}]
["2021-07-13",117231,"3.RKC.457",31.9,{"$f":"passage(Tableau2[[#This Row],[Plaque Véhicule]])","v":"2021-07-07"},{"$f":"litres(Tableau2[[#This Row],[Plaque Véhicule]])","v":64.83},{"$f":"kilom(Tableau2[[#This Row],[Plaque Véhicule]])","v":116842},{"$f":"IFERROR(Tableau2[[#This Row],[Dernier plein réalisé]]/(Tableau2[[#This Row],[Kilométrage véhicule]]-Tableau2[[#This Row],[Dernier relevé kilométrique]])*100,\"\")","v":16.665809768637533}]
["2021-07-13",74983,"3.XKS.363",80.8,{"$f":"passage(Tableau2[[#This Row],[Plaque Véhicule]])","v":"2021-06-29"},{"$f":"litres(Tableau2[[#This Row],[Plaque Véhicule]])","v":54.66},{"$f":"kilom(Tableau2[[#This Row],[Plaque Véhicule]])","v":99518},{"$f":"IFERROR(Tableau2[[#This Row],[Dernier plein réalisé]]/(Tableau2[[#This Row],[Kilométrage véhicule]]-Tableau2[[#This Row],[Dernier relevé kilométrique]])*100,\"\")","v":-0.22278377827593235}]
["2021-07-14",22579,"3.LXX.700",87.07,{"$f":"passage(Tableau2[[#This Row],[Plaque Véhicule]])","v":"2021-07-08"},{"$f":"litres(Tableau2[[#This Row],[Plaque Véhicule]])","v":46.38},{"$f":"kilom(Tableau2[[#This Row],[Plaque Véhicule]])","v":286547},{"$f":"IFERROR(Tableau2[[#This Row],[Dernier plein réalisé]]/(Tableau2[[#This Row],[Kilométrage véhicule]]-Tableau2[[#This Row],[Dernier relevé kilométrique]])*100,\"\")","v":-1.7570311552915507E-2}]
["2021-07-15",1,"3.ACM.349",61.29,{"$f":"passage(Tableau2[[#This Row],[Plaque Véhicule]])","v":"2021-07-08"},{"$f":"litres(Tableau2[[#This Row],[Plaque Véhicule]])","v":36.94},{"$f":"kilom(Tableau2[[#This Row],[Plaque Véhicule]])","v":87289},{"$f":"IFERROR(Tableau2[[#This Row],[Dernier plein réalisé]]/(Tableau2[[#This Row],[Kilométrage véhicule]]-Tableau2[[#This Row],[Dernier relevé kilométrique]])*100,\"\")","v":-4.2319677389790117E-2}]
["2021-07-16",251198,"3.NCZ.884",68.86,{"$f":"passage(Tableau2[[#This Row],[Plaque Véhicule]])","v":"2021-07-01"},{"$f":"litres(Tableau2[[#This Row],[Plaque Véhicule]])","v":57.97},{"$f":"kilom(Tableau2[[#This Row],[Plaque Véhicule]])","v":149420},{"$f":"IFERROR(Tableau2[[#This Row],[Dernier plein réalisé]]/(Tableau2[[#This Row],[Kilométrage véhicule]]-Tableau2[[#This Row],[Dernier relevé kilométrique]])*100,\"\")","v":5.6957299219870694E-2}]
["2021-07-16",101660,"3.QXC.357",60.94,{"$f":"passage(Tableau2[[#This Row],[Plaque Véhicule]])","v":"2021-07-09"},{"$f":"litres(Tableau2[[#This Row],[Plaque Véhicule]])","v":62.25},{"$f":"kilom(Tableau2[[#This Row],[Plaque Véhicule]])","v":1},{"$f":"IFERROR(Tableau2[[#This Row],[Dernier plein réalisé]]/(Tableau2[[#This Row],[Kilométrage véhicule]]-Tableau2[[#This Row],[Dernier relevé kilométrique]])*100,\"\")","v":6.1234125852113436E-2}]
["2021-07-19",64400,"3.UNX.398",41.09,{"$f":"passage(Tableau2[[#This Row],[Plaque Véhicule]])","v":"2021-07-02"},{"$f":"litres(Tableau2[[#This Row],[Plaque Véhicule]])","v":24.83},{"$f":"kilom(Tableau2[[#This Row],[Plaque Véhicule]])","v":149780},{"$f":"IFERROR(Tableau2[[#This Row],[Dernier plein réalisé]]/(Tableau2[[#This Row],[Kilométrage véhicule]]-Tableau2[[#This Row],[Dernier relevé kilométrique]])*100,\"\")","v":-2.9081752166783791E-2}]
["2021-07-19",70350,"3.SJC.633",72.92,{"$f":"passage(Tableau2[[#This Row],[Plaque Véhicule]])","v":"2021-07-07"},{"$f":"litres(Tableau2[[#This Row],[Plaque Véhicule]])","v":45.11},{"$f":"kilom(Tableau2[[#This Row],[Plaque Véhicule]])","v":150551},{"$f":"IFERROR(Tableau2[[#This Row],[Dernier plein réalisé]]/(Tableau2[[#This Row],[Kilométrage véhicule]]-Tableau2[[#This Row],[Dernier relevé kilométrique]])*100,\"\")","v":-5.6246181469058985E-2}]
["2021-07-20",75599,"3.QRM.682",77.19,{"$f":"passage(Tableau2[[#This Row],[Plaque Véhicule]])","v":"2021-07-09"},{"$f":"litres(Tableau2[[#This Row],[Plaque Véhicule]])","v":63.88},{"$f":"kilom(Tableau2[[#This Row],[Plaque Véhicule]])","v":60112},{"$f":"IFERROR(Tableau2[[#This Row],[Dernier plein réalisé]]/(Tableau2[[#This Row],[Kilométrage véhicule]]-Tableau2[[#This Row],[Dernier relevé kilométrique]])*100,\"\")","v":0.41247497901465746}]
["2021-07-22",1,"1.TAX.095",53.65,{"$f":"passage(Tableau2[[#This Row],[Plaque Véhicule]])","v":"2021-07-02"},{"$f":"litres(Tableau2[[#This Row],[Plaque Véhicule]])","v":0.02},{"$f":"kilom(Tableau2[[#This Row],[Plaque Véhicule]])","v":133390},{"$f":"IFERROR(Tableau2[[#This Row],[Dernier plein réalisé]]/(Tableau2[[#This Row],[Kilométrage véhicule]]-Tableau2[[#This Row],[Dernier relevé kilométrique]])*100,\"\")","v":-1.4993740113502613E-5}]
["2021-07-22",287419,"3.XAL.248",59.99,{"$f":"passage(Tableau2[[#This Row],[Plaque Véhicule]])","v":"2021-07-05"},{"$f":"litres(Tableau2[[#This Row],[Plaque Véhicule]])","v":61.14},{"$f":"kilom(Tableau2[[#This Row],[Plaque Véhicule]])","v":100218},{"$f":"IFERROR(Tableau2[[#This Row],[Dernier plein réalisé]]/(Tableau2[[#This Row],[Kilométrage véhicule]]-Tableau2[[#This Row],[Dernier relevé kilométrique]])*100,\"\")","v":3.2660081944006707E-2}]
["2021-07-22",251936,"3.SPH.860",70.63,{"$f":"passage(Tableau2[[#This Row],[Plaque Véhicule]])","v":"2021-07-05"},{"$f":"litres(Tableau2[[#This Row],[Plaque Véhicule]])","v":70.97},{"$f":"kilom(Tableau2[[#This Row],[Plaque Véhicule]])","v":249883},{"$f":"IFERROR(Tableau2[[#This Row],[Dernier plein réalisé]]/(Tableau2[[#This Row],[Kilométrage véhicule]]-Tableau2[[#This Row],[Dernier relevé kilométrique]])*100,\"\")","v":3.4568923526546516}]
["2021-07-22",26017,"3.XAA.223",49.57,{"$f":"passage(Tableau2[[#This Row],[Plaque Véhicule]])","v":"2021-07-10"},{"$f":"litres(Tableau2[[#This Row],[Plaque Véhicule]])","v":68.010000000000005},{"$f":"kilom(Tableau2[[#This Row],[Plaque Véhicule]])","v":1},{"$f":"IFERROR(Tableau2[[#This Row],[Dernier plein réalisé]]/(Tableau2[[#This Row],[Kilométrage véhicule]]-Tableau2[[#This Row],[Dernier relevé kilométrique]])*100,\"\")","v":0.26141605166051662}]
["2021-07-26",22932,"3.QAP.233",67.819999999999993,{"$f":"passage(Tableau2[[#This Row],[Plaque Véhicule]])","v":"2021-07-06"},{"$f":"litres(Tableau2[[#This Row],[Plaque Véhicule]])","v":72.78},{"$f":"kilom(Tableau2[[#This Row],[Plaque Véhicule]])","v":22150},{"$f":"IFERROR(Tableau2[[#This Row],[Dernier plein réalisé]]/(Tableau2[[#This Row],[Kilométrage véhicule]]-Tableau2[[#This Row],[Dernier relevé kilométrique]])*100,\"\")","v":9.3069053708439906}]
["2021-07-26",102464,"3.JXX.096",58.18,{"$f":"passage(Tableau2[[#This Row],[Plaque Véhicule]])","v":"2021-07-07"},{"$f":"litres(Tableau2[[#This Row],[Plaque Véhicule]])","v":66.23},{"$f":"kilom(Tableau2[[#This Row],[Plaque Véhicule]])","v":69810},{"$f":"IFERROR(Tableau2[[#This Row],[Dernier plein réalisé]]/(Tableau2[[#This Row],[Kilométrage véhicule]]-Tableau2[[#This Row],[Dernier relevé kilométrique]])*100,\"\")","v":0.20282354382311507}]
["2021-07-26",76197,"3.SJC.633",70.260000000000005,{"$f":"passage(Tableau2[[#This Row],[Plaque Véhicule]])","v":"2021-07-19"},{"$f":"litres(Tableau2[[#This Row],[Plaque Véhicule]])","v":72.92},{"$f":"kilom(Tableau2[[#This Row],[Plaque Véhicule]])","v":70350},{"$f":"IFERROR(Tableau2[[#This Row],[Dernier plein réalisé]]/(Tableau2[[#This Row],[Kilométrage véhicule]]-Tableau2[[#This Row],[Dernier relevé kilométrique]])*100,\"\")","v":1.2471352830511373}]
["2021-07-27",117765,"3.NZS.350",35.11,{"$f":"passage(Tableau2[[#This Row],[Plaque Véhicule]])","v":"2021-07-07"},{"$f":"litres(Tableau2[[#This Row],[Plaque Véhicule]])","v":64.02},{"$f":"kilom(Tableau2[[#This Row],[Plaque Véhicule]])","v":45110},{"$f":"IFERROR(Tableau2[[#This Row],[Dernier plein réalisé]]/(Tableau2[[#This Row],[Kilométrage véhicule]]-Tableau2[[#This Row],[Dernier relevé kilométrique]])*100,\"\")","v":8.8115064345193034E-2}]
["2021-07-28",1,"3.RKC.457",47.77,{"$f":"passage(Tableau2[[#This Row],[Plaque Véhicule]])","v":"2021-07-13"},{"$f":"litres(Tableau2[[#This Row],[Plaque Véhicule]])","v":31.9},{"$f":"kilom(Tableau2[[#This Row],[Plaque Véhicule]])","v":117231},{"$f":"IFERROR(Tableau2[[#This Row],[Dernier plein réalisé]]/(Tableau2[[#This Row],[Kilométrage véhicule]]-Tableau2[[#This Row],[Dernier relevé kilométrique]])*100,\"\")","v":-2.7211464642156444E-2}]
["2021-07-28",45782,"3.LXX.700",83.59,{"$f":"passage(Tableau2[[#This Row],[Plaque Véhicule]])","v":"2021-07-14"},{"$f":"litres(Tableau2[[#This Row],[Plaque Véhicule]])","v":87.07},{"$f":"kilom(Tableau2[[#This Row],[Plaque Véhicule]])","v":22579},{"$f":"IFERROR(Tableau2[[#This Row],[Dernier plein réalisé]]/(Tableau2[[#This Row],[Kilométrage véhicule]]-Tableau2[[#This Row],[Dernier relevé kilométrique]])*100,\"\")","v":0.37525320001723911}]
["2021-07-28",228104,"3.ACM.349",85.65,{"$f":"passage(Tableau2[[#This Row],[Plaque Véhicule]])","v":"2021-07-15"},{"$f":"litres(Tableau2[[#This Row],[Plaque Véhicule]])","v":61.29},{"$f":"kilom(Tableau2[[#This Row],[Plaque Véhicule]])","v":1},{"$f":"IFERROR(Tableau2[[#This Row],[Dernier plein réalisé]]/(Tableau2[[#This Row],[Kilométrage véhicule]]-Tableau2[[#This Row],[Dernier relevé kilométrique]])*100,\"\")","v":2.6869440559747135E-2}]
["2021-07-29",117427,"3.CVC.067",75.31,{"$f":"passage(Tableau2[[#This Row],[Plaque Véhicule]])","v":"2021-07-09"},{"$f":"litres(Tableau2[[#This Row],[Plaque Véhicule]])","v":25.21},{"$f":"kilom(Tableau2[[#This Row],[Plaque Véhicule]])","v":151029},{"$f":"IFERROR(Tableau2[[#This Row],[Dernier plein réalisé]]/(Tableau2[[#This Row],[Kilométrage véhicule]]-Tableau2[[#This Row],[Dernier relevé kilométrique]])*100,\"\")","v":-7.5025296113326589E-2}]
["2021-07-29",60631,"3.QXC.357",65.13,{"$f":"passage(Tableau2[[#This Row],[Plaque Véhicule]])","v":"2021-07-16"},{"$f":"litres(Tableau2[[#This Row],[Plaque Véhicule]])","v":60.94},{"$f":"kilom(Tableau2[[#This Row],[Plaque Véhicule]])","v":101660},{"$f":"IFERROR(Tableau2[[#This Row],[Dernier plein réalisé]]/(Tableau2[[#This Row],[Kilométrage véhicule]]-Tableau2[[#This Row],[Dernier relevé kilométrique]])*100,\"\")","v":-0.1485290891808233}]
["2021-07-30",102919,"3.QXC.357",42.42,{"$f":"passage(Tableau2[[#This Row],[Plaque Véhicule]])","v":"2021-07-29"},{"$f":"litres(Tableau2[[#This Row],[Plaque Véhicule]])","v":65.13},{"$f":"kilom(Tableau2[[#This Row],[Plaque Véhicule]])","v":60631},{"$f":"IFERROR(Tableau2[[#This Row],[Dernier plein réalisé]]/(Tableau2[[#This Row],[Kilométrage véhicule]]-Tableau2[[#This Row],[Dernier relevé kilométrique]])*100,\"\")","v":0.15401532349602723}]
["2021-07-30",33337,"3.LCS.384",78.069999999999993,{"$f":"passage(Tableau2[[#This Row],[Plaque Véhicule]])","v":"2021-07-09"},{"$f":"litres(Tableau2[[#This Row],[Plaque Véhicule]])","v":54.42},{"$f":"kilom(Tableau2[[#This Row],[Plaque Véhicule]])","v":63350},{"$f":"IFERROR(Tableau2[[#This Row],[Dernier plein réalisé]]/(Tableau2[[#This Row],[Kilométrage véhicule]]-Tableau2[[#This Row],[Dernier relevé kilométrique]])*100,\"\")","v":-0.18132142738146803}]
["2021-08-01",1,"2.TAX.033",41.82,{"$f":"passage(Tableau2[[#This Row],[Plaque Véhicule]])","v":"2021-07-09"},{"$f":"litres(Tableau2[[#This Row],[Plaque Véhicule]])","v":55.06},{"$f":"kilom(Tableau2[[#This Row],[Plaque Véhicule]])","v":145226},{"$f":"IFERROR(Tableau2[[#This Row],[Dernier plein réalisé]]/(Tableau2[[#This Row],[Kilométrage véhicule]]-Tableau2[[#This Row],[Dernier relevé kilométrique]])*100,\"\")","v":-3.79135823721811E-2}]
["2021-08-02",66000,"3.QRM.682",45.58,{"$f":"passage(Tableau2[[#This Row],[Plaque Véhicule]])","v":"2021-07-20"},{"$f":"litres(Tableau2[[#This Row],[Plaque Véhicule]])","v":77.19},{"$f":"kilom(Tableau2[[#This Row],[Plaque Véhicule]])","v":75599},{"$f":"IFERROR(Tableau2[[#This Row],[Dernier plein réalisé]]/(Tableau2[[#This Row],[Kilométrage véhicule]]-Tableau2[[#This Row],[Dernier relevé kilométrique]])*100,\"\")","v":-0.804146265235962}]
["2021-08-02",26917,"3.XAA.223",52.17,{"$f":"passage(Tableau2[[#This Row],[Plaque Véhicule]])","v":"2021-07-22"},{"$f":"litres(Tableau2[[#This Row],[Plaque Véhicule]])","v":49.57},{"$f":"kilom(Tableau2[[#This Row],[Plaque Véhicule]])","v":26017},{"$f":"IFERROR(Tableau2[[#This Row],[Dernier plein réalisé]]/(Tableau2[[#This Row],[Kilométrage véhicule]]-Tableau2[[#This Row],[Dernier relevé kilométrique]])*100,\"\")","v":5.5077777777777781}]
["2021-08-02",152980,"3.QNU.352",46.88,{"$f":"passage(Tableau2[[#This Row],[Plaque Véhicule]])","v":"2021-07-12"},{"$f":"litres(Tableau2[[#This Row],[Plaque Véhicule]])","v":69.650000000000006},{"$f":"kilom(Tableau2[[#This Row],[Plaque Véhicule]])","v":61710},{"$f":"IFERROR(Tableau2[[#This Row],[Dernier plein réalisé]]/(Tableau2[[#This Row],[Kilométrage véhicule]]-Tableau2[[#This Row],[Dernier relevé kilométrique]])*100,\"\")","v":7.6312041196450103E-2}]
["2021-08-02",66000,"3.SJC.632",45.58,{"$f":"passage(Tableau2[[#This Row],[Plaque Véhicule]])","v":"2021-07-12"},{"$f":"litres(Tableau2[[#This Row],[Plaque Véhicule]])","v":62.87},{"$f":"kilom(Tableau2[[#This Row],[Plaque Véhicule]])","v":101012},{"$f":"IFERROR(Tableau2[[#This Row],[Dernier plein réalisé]]/(Tableau2[[#This Row],[Kilométrage véhicule]]-Tableau2[[#This Row],[Dernier relevé kilométrique]])*100,\"\")","v":-0.17956700559808064}]
["2021-08-02",26917,"3.RKC.457",52.17,{"$f":"passage(Tableau2[[#This Row],[Plaque Véhicule]])","v":"2021-07-28"},{"$f":"litres(Tableau2[[#This Row],[Plaque Véhicule]])","v":47.77},{"$f":"kilom(Tableau2[[#This Row],[Plaque Véhicule]])","v":1},{"$f":"IFERROR(Tableau2[[#This Row],[Dernier plein réalisé]]/(Tableau2[[#This Row],[Kilométrage véhicule]]-Tableau2[[#This Row],[Dernier relevé kilométrique]])*100,\"\")","v":0.17747807995244466}]
["2021-08-03",162968,"3.XKS.363",57.4,{"$f":"passage(Tableau2[[#This Row],[Plaque Véhicule]])","v":"2021-07-13"},{"$f":"litres(Tableau2[[#This Row],[Plaque Véhicule]])","v":80.8},{"$f":"kilom(Tableau2[[#This Row],[Plaque Véhicule]])","v":74983},{"$f":"IFERROR(Tableau2[[#This Row],[Dernier plein réalisé]]/(Tableau2[[#This Row],[Kilométrage véhicule]]-Tableau2[[#This Row],[Dernier relevé kilométrique]])*100,\"\")","v":9.1833835312837411E-2}]
["2021-08-03",136007,"3.LXX.700",50.94,{"$f":"passage(Tableau2[[#This Row],[Plaque Véhicule]])","v":"2021-07-28"},{"$f":"litres(Tableau2[[#This Row],[Plaque Véhicule]])","v":83.59},{"$f":"kilom(Tableau2[[#This Row],[Plaque Véhicule]])","v":45782},{"$f":"IFERROR(Tableau2[[#This Row],[Dernier plein réalisé]]/(Tableau2[[#This Row],[Kilométrage véhicule]]-Tableau2[[#This Row],[Dernier relevé kilométrique]])*100,\"\")","v":9.2646162371848167E-2}]
["2021-08-03",165681,"3.ACM.349",48.21,{"$f":"passage(Tableau2[[#This Row],[Plaque Véhicule]])","v":"2021-07-28"},{"$f":"litres(Tableau2[[#This Row],[Plaque Véhicule]])","v":85.65},{"$f":"kilom(Tableau2[[#This Row],[Plaque Véhicule]])","v":228104},{"$f":"IFERROR(Tableau2[[#This Row],[Dernier plein réalisé]]/(Tableau2[[#This Row],[Kilométrage véhicule]]-Tableau2[[#This Row],[Dernier relevé kilométrique]])*100,\"\")","v":-0.13720904153917626}]
["2021-08-04",881020,"3.NCZ.884",35.159999999999997,{"$f":"passage(Tableau2[[#This Row],[Plaque Véhicule]])","v":"2021-07-16"},{"$f":"litres(Tableau2[[#This Row],[Plaque Véhicule]])","v":68.86},{"$f":"kilom(Tableau2[[#This Row],[Plaque Véhicule]])","v":251198},{"$f":"IFERROR(Tableau2[[#This Row],[Dernier plein réalisé]]/(Tableau2[[#This Row],[Kilométrage véhicule]]-Tableau2[[#This Row],[Dernier relevé kilométrique]])*100,\"\")","v":1.0933247806523112E-2}]
["2021-08-04",1,"3.QXC.357",59.21,{"$f":"passage(Tableau2[[#This Row],[Plaque Véhicule]])","v":"2021-07-30"},{"$f":"litres(Tableau2[[#This Row],[Plaque Véhicule]])","v":42.42},{"$f":"kilom(Tableau2[[#This Row],[Plaque Véhicule]])","v":102919},{"$f":"IFERROR(Tableau2[[#This Row],[Dernier plein réalisé]]/(Tableau2[[#This Row],[Kilométrage véhicule]]-Tableau2[[#This Row],[Dernier relevé kilométrique]])*100,\"\")","v":-4.1217279776132452E-2}]
["2021-08-04",220855,"3.UNX.398",82.42,{"$f":"passage(Tableau2[[#This Row],[Plaque Véhicule]])","v":"2021-07-19"},{"$f":"litres(Tableau2[[#This Row],[Plaque Véhicule]])","v":41.09},{"$f":"kilom(Tableau2[[#This Row],[Plaque Véhicule]])","v":64400},{"$f":"IFERROR(Tableau2[[#This Row],[Dernier plein réalisé]]/(Tableau2[[#This Row],[Kilométrage véhicule]]-Tableau2[[#This Row],[Dernier relevé kilométrique]])*100,\"\")","v":2.6263142756703207E-2}]
["2021-08-04",76751,"3.SJC.633",67.489999999999995,{"$f":"passage(Tableau2[[#This Row],[Plaque Véhicule]])","v":"2021-07-26"},{"$f":"litres(Tableau2[[#This Row],[Plaque Véhicule]])","v":70.260000000000005},{"$f":"kilom(Tableau2[[#This Row],[Plaque Véhicule]])","v":76197},{"$f":"IFERROR(Tableau2[[#This Row],[Dernier plein réalisé]]/(Tableau2[[#This Row],[Kilométrage véhicule]]-Tableau2[[#This Row],[Dernier relevé kilométrique]])*100,\"\")","v":12.682310469314082}]
["2021-08-05",103548,"3.QRM.682",61.49,{"$f":"passage(Tableau2[[#This Row],[Plaque Véhicule]])","v":"2021-08-02"},{"$f":"litres(Tableau2[[#This Row],[Plaque Véhicule]])","v":45.58},{"$f":"kilom(Tableau2[[#This Row],[Plaque Véhicule]])","v":66000},{"$f":"IFERROR(Tableau2[[#This Row],[Dernier plein réalisé]]/(Tableau2[[#This Row],[Kilométrage véhicule]]-Tableau2[[#This Row],[Dernier relevé kilométrique]])*100,\"\")","v":0.12139128582081601}]
["2021-08-06",153617,"1.TAX.095",38.4,{"$f":"passage(Tableau2[[#This Row],[Plaque Véhicule]])","v":"2021-07-22"},{"$f":"litres(Tableau2[[#This Row],[Plaque Véhicule]])","v":53.65},{"$f":"kilom(Tableau2[[#This Row],[Plaque Véhicule]])","v":1},{"$f":"IFERROR(Tableau2[[#This Row],[Dernier plein réalisé]]/(Tableau2[[#This Row],[Kilométrage véhicule]]-Tableau2[[#This Row],[Dernier relevé kilométrique]])*100,\"\")","v":3.4924747422143528E-2}]
["2021-08-06",118247,"3.XAL.248",35.54,{"$f":"passage(Tableau2[[#This Row],[Plaque Véhicule]])","v":"2021-07-22"},{"$f":"litres(Tableau2[[#This Row],[Plaque Véhicule]])","v":59.99},{"$f":"kilom(Tableau2[[#This Row],[Plaque Véhicule]])","v":287419},{"$f":"IFERROR(Tableau2[[#This Row],[Dernier plein réalisé]]/(Tableau2[[#This Row],[Kilométrage véhicule]]-Tableau2[[#This Row],[Dernier relevé kilométrique]])*100,\"\")","v":-3.5460950984796541E-2}]
["2021-08-06",70933,"3.SPH.860",71.81,{"$f":"passage(Tableau2[[#This Row],[Plaque Véhicule]])","v":"2021-07-22"},{"$f":"litres(Tableau2[[#This Row],[Plaque Véhicule]])","v":70.63},{"$f":"kilom(Tableau2[[#This Row],[Plaque Véhicule]])","v":251936},{"$f":"IFERROR(Tableau2[[#This Row],[Dernier plein réalisé]]/(Tableau2[[#This Row],[Kilométrage véhicule]]-Tableau2[[#This Row],[Dernier relevé kilométrique]])*100,\"\")","v":-3.9021452683104703E-2}]
["2021-08-07",1,"3.XAA.223",42.35,{"$f":"passage(Tableau2[[#This Row],[Plaque Véhicule]])","v":"2021-08-02"},{"$f":"litres(Tableau2[[#This Row],[Plaque Véhicule]])","v":52.17},{"$f":"kilom(Tableau2[[#This Row],[Plaque Véhicule]])","v":26917},{"$f":"IFERROR(Tableau2[[#This Row],[Dernier plein réalisé]]/(Tableau2[[#This Row],[Kilométrage véhicule]]-Tableau2[[#This Row],[Dernier relevé kilométrique]])*100,\"\")","v":-0.19382523406152474}]
["2021-08-07",288880,"3.QAP.233",66.05,{"$f":"passage(Tableau2[[#This Row],[Plaque Véhicule]])","v":"2021-07-26"},{"$f":"litres(Tableau2[[#This Row],[Plaque Véhicule]])","v":67.819999999999993},{"$f":"kilom(Tableau2[[#This Row],[Plaque Véhicule]])","v":22932},{"$f":"IFERROR(Tableau2[[#This Row],[Dernier plein réalisé]]/(Tableau2[[#This Row],[Kilométrage véhicule]]-Tableau2[[#This Row],[Dernier relevé kilométrique]])*100,\"\")","v":2.5501225803540539E-2}]
["2021-08-09",66750,"3.JXX.096",43.88,{"$f":"passage(Tableau2[[#This Row],[Plaque Véhicule]])","v":"2021-07-26"},{"$f":"litres(Tableau2[[#This Row],[Plaque Véhicule]])","v":58.18},{"$f":"kilom(Tableau2[[#This Row],[Plaque Véhicule]])","v":102464},{"$f":"IFERROR(Tableau2[[#This Row],[Dernier plein réalisé]]/(Tableau2[[#This Row],[Kilométrage véhicule]]-Tableau2[[#This Row],[Dernier relevé kilométrique]])*100,\"\")","v":-0.16290530324242594}]
["2021-08-09",61113,"3.SJC.633",63.37,{"$f":"passage(Tableau2[[#This Row],[Plaque Véhicule]])","v":"2021-08-04"},{"$f":"litres(Tableau2[[#This Row],[Plaque Véhicule]])","v":67.489999999999995},{"$f":"kilom(Tableau2[[#This Row],[Plaque Véhicule]])","v":76751},{"$f":"IFERROR(Tableau2[[#This Row],[Dernier plein réalisé]]/(Tableau2[[#This Row],[Kilométrage véhicule]]-Tableau2[[#This Row],[Dernier relevé kilométrique]])*100,\"\")","v":-0.43157692799590741}]
["2021-08-10",136901,"3.NZS.350",55.18,{"$f":"passage(Tableau2[[#This Row],[Plaque Véhicule]])","v":"2021-07-27"},{"$f":"litres(Tableau2[[#This Row],[Plaque Véhicule]])","v":35.11},{"$f":"kilom(Tableau2[[#This Row],[Plaque Véhicule]])","v":117765},{"$f":"IFERROR(Tableau2[[#This Row],[Dernier plein réalisé]]/(Tableau2[[#This Row],[Kilométrage véhicule]]-Tableau2[[#This Row],[Dernier relevé kilométrique]])*100,\"\")","v":0.18347617056856189}]
["2021-08-10",118661,"3.RKC.457",27.68,{"$f":"passage(Tableau2[[#This Row],[Plaque Véhicule]])","v":"2021-08-02"},{"$f":"litres(Tableau2[[#This Row],[Plaque Véhicule]])","v":52.17},{"$f":"kilom(Tableau2[[#This Row],[Plaque Véhicule]])","v":26917},{"$f":"IFERROR(Tableau2[[#This Row],[Dernier plein réalisé]]/(Tableau2[[#This Row],[Kilométrage véhicule]]-Tableau2[[#This Row],[Dernier relevé kilométrique]])*100,\"\")","v":5.6864754098360656E-2}]
["2021-08-10",46500,"3.LXX.700",82.8,{"$f":"passage(Tableau2[[#This Row],[Plaque Véhicule]])","v":"2021-08-03"},{"$f":"litres(Tableau2[[#This Row],[Plaque Véhicule]])","v":50.94},{"$f":"kilom(Tableau2[[#This Row],[Plaque Véhicule]])","v":136007},{"$f":"IFERROR(Tableau2[[#This Row],[Dernier plein réalisé]]/(Tableau2[[#This Row],[Kilométrage véhicule]]-Tableau2[[#This Row],[Dernier relevé kilométrique]])*100,\"\")","v":-5.6911749919000741E-2}]
["2021-08-10",77344,"3.ACM.349",72.599999999999994,{"$f":"passage(Tableau2[[#This Row],[Plaque Véhicule]])","v":"2021-08-03"},{"$f":"litres(Tableau2[[#This Row],[Plaque Véhicule]])","v":48.21},{"$f":"kilom(Tableau2[[#This Row],[Plaque Véhicule]])","v":165681},{"$f":"IFERROR(Tableau2[[#This Row],[Dernier plein réalisé]]/(Tableau2[[#This Row],[Kilométrage véhicule]]-Tableau2[[#This Row],[Dernier relevé kilométrique]])*100,\"\")","v":-5.457509310934263E-2}]
["2021-08-11",104193,"3.CVC.067",63.13,{"$f":"passage(Tableau2[[#This Row],[Plaque Véhicule]])","v":"2021-07-29"},{"$f":"litres(Tableau2[[#This Row],[Plaque Véhicule]])","v":75.31},{"$f":"kilom(Tableau2[[#This Row],[Plaque Véhicule]])","v":117427},{"$f":"IFERROR(Tableau2[[#This Row],[Dernier plein réalisé]]/(Tableau2[[#This Row],[Kilométrage véhicule]]-Tableau2[[#This Row],[Dernier relevé kilométrique]])*100,\"\")","v":-0.56906453075411823}]